fUSD/lending_fUSD_20260103
["ID","MTS","AMOUNT","RATE_DAILY","PERIOD"]
[400343088,1767398401294,1200.0,0.00017999,2]
[400343089,1767398461247,500.0,0.00043049,120]
[400343090,1767398466474,500.0,0.00014773,2]
[400343091,1767398469431,361.57938423,0.00043049,30]
[400343092,1767398494230,1370.092,0.0001764,2]
[400343093,1767398510102,-1145710.39063022,0.00018,2]
[400343094,1767398510139,-1187.29321761,0.00018,2]
[400343095,1767398510168,-203.15843922,0.00018,2]
[400343096,1767398510196,-528.0,0.00018,2]
[400343097,1767398701217,300.0,0.00017999,2]
[400343098,1767398701425,480.0,0.00017999,2]
[400343099,1767398760988,500.0,0.00043049,120]
[400343100,1767398791134,500.0,0.00017999,2]
[400343101,1767398816073,444.7530766,0.00017999,2]
[400343102,1767398816111,240.70912435,0.00017999,2]
[400343103,1767398849880,151.0,0.00043049,30]
[400343104,1767398850195,151.0,0.00043049,30]
[400343105,1767398960134,-304.0,0.00018,2]
[400343106,1767398960155,-165.30515485,0.00018,2]
[400343107,1767398960177,-165.30515485,0.00018,2]
[400343108,1767398960197,-165.30515485,0.00018,2]
[400343109,1767398960222,-824.25708159,0.00018,2]
[400343110,1767398964024,193.09,0.0001648,2]
[400343111,1767398975599,256.05,0.00010261,2]
[400343112,1767398975828,256.05,0.00010801,2]
[400343113,1767398976040,256.05,0.00011341,2]
[400343114,1767398976377,256.05,0.00011881,2]
[400343115,1767398976620,256.05,0.00012421,2]
[400343116,1767398976843,256.05,0.00012961,2]
[400343117,1767398977062,256.05,0.00013501,2]
[400343118,1767398977260,256.05,0.00014041,2]
[400343119,1767398977466,256.05,0.00014581,2]
[400343120,1767398977699,256.05,0.00015121,2]
[400343121,1767398977917,256.05,0.00015662,2]
[400343122,1767398978159,256.05,0.00016202,2]
[400343123,1767398978488,256.05,0.00016742,2]
[400343124,1767398978606,256.05,0.00017282,2]
[400343125,1767398978819,256.05,0.00017822,2]
[400343126,1767399003556,6698.5123,0.000179,2]
[400343127,1767399028257,500.0,0.000179,2]
[400343133,1767399031994,-82308.72158011,0.00018,2]
[400343134,1767399032007,-661.52,0.00018,2]
[400343135,1767399032026,-19788.9996158,0.00018,2]
[400343136,1767399032040,-304.0,0.00018,2]
[400343137,1767399032051,-195.0,0.00018,2]
[400343138,1767399032062,-195.0,0.00018,2]
[400343139,1767399032074,-300.0,0.00018,2]
[400343140,1767399032086,-195.0,0.00018,2]
[400343141,1767399032097,-2506.2218427,0.00018,2]
[400343142,1767399032110,-200.0,0.00018,2]
[400343143,1767399032121,-250.0,0.00018,2]
[400343144,1767399032133,-200.0,0.00018,2]
[400343145,1767399032144,-200.0,0.00018,2]
[400343146,1767399032155,-195.75504075,0.00018,2]
[400343147,1767399032166,-250.0,0.00018,2]
[400343148,1767399032176,-1774.95381733,0.000181,2]
[400343149,1767399032187,-9947.59,0.0001815,2]
[400343150,1767399032198,-661.52,0.00018274,2]
[400343151,1767399032208,-256.05,0.00018362,2]
[400343152,1767399032219,-661.52,0.00018548,2]
[400343153,1767399032230,-661.52,0.00018822,2]
[400343154,1767399032241,-56121.6183135,0.00018861,2]
[400343155,1767399032254,-22773.85636885,0.00018861,2]
[400343156,1767399032267,-1736.22266811,0.00018861,2]
[400343157,1767399032277,-256.05,0.00018902,2]
[400343158,1767399032288,-300.0,0.00019,2]
[400343159,1767399032306,-217.85137542,0.00019,2]
[400343160,1767399032317,-182.93937194,0.00019,2]
[400343161,1767399032332,-661.52,0.00019096,2]
[400343162,1767399032342,-151.0,0.00019258,2]
[400343163,1767399032353,-151.0,0.00019258,2]
[400343164,1767399032364,-151.0,0.0001928,2]
[400343166,1767399032374,-151.0,0.0001928,2]
[400343167,1767399032384,-661.53371862,0.0001937,2]
[400343168,1767399032395,-256.05,0.00019442,2]
[400343169,1767399032406,-151.96719165,0.000198,2]
[400343170,1767399032417,-250.0,0.000198,2]
[400343171,1767399032427,-4149.14606167,0.000198,2]
[400343172,1767399032442,-558.65627698,0.000198,2]
[400343173,1767399032455,-269.84867698,0.000198,2]
[400343174,1767399032468,-22.34898437,0.000198,2]
[400343175,1767399032479,-200.0,0.000198,2]
[400343176,1767399032490,-51.49532099,0.000198,2]
[400343177,1767399032503,-248.50467901,0.000198,2]
[400343178,1767399032514,-2500.0,0.000198,2]
[400343179,1767399032525,-195.0,0.000198,2]
[400343180,1767399032536,-300.0,0.000198,2]
[400343181,1767399032547,-2500.0,0.000198,2]
[400343182,1767399032557,-195.0,0.000198,2]
[400343183,1767399032568,-485.14989108,0.000199,3]
[400343184,1767399032587,-474.202935,0.000199,3]
[400343185,1767399032599,-1413.25471627,0.000199,3]
[400343186,1767399032612,-529.36483573,0.000199,3]
[400343187,1767399032626,-372.51000098,0.000199,3]
[400343188,1767399032640,-440.62817376,0.000199,3]
[400343189,1767399032653,-1195.40153388,0.000199,3]
[400343190,1767399032669,-315.01016201,0.00019912,2]
[400343191,1767399032680,-245.2489301,0.00019912,2]
[400343192,1767399032691,-166.00424737,0.00019912,2]
[400343193,1767399032702,-288.19917738,0.00019912,2]
[400343194,1767399032716,-27.20947563,0.00019912,2]
[400343195,1767399032729,-375.12799992,0.00019912,2]
[400343196,1767399032742,-97.66252445,0.00019912,2]
[400343197,1767399032753,-402.33747555,0.00019913,2]
[400343198,1767399032766,-1431.97049844,0.00019913,2]
[400343205,1767399038042,-493.17330366,0.00019913,2]
[400343206,1767399038056,-2001.84920429,0.00019913,2]
[400343207,1767399038514,-2264.59890439,0.00019913,2]
[400343208,1767399038527,-19330.12794158,0.00019913,2]
[400343209,1767399038539,-7887.11604352,0.0001995,15]
[400343210,1767399038551,-256.05,0.00019982,2]
[400343211,1767399038562,-1530.01840952,0.0002,2]
[400343212,1767399038572,-3088.33,0.0002,2]
[400343213,1767399038584,-2223.35760788,0.0002,2]
[400343214,1767399038605,-1726.64239212,0.0002,2]
[400343215,1767399038616,-549.71236216,0.0002,2]
[400343216,1767399038629,-742.08608026,0.0002,2]
[400343217,1767399038639,-524.43076272,0.00020055,2]
[400343218,1767399038652,-688.30896852,0.00020055,2]
[400343219,1767399038665,-583.72879,0.00020055,2]
[400343220,1767399038678,-860.70000746,0.00020055,2]
[400343221,1767399038690,-343.77657765,0.00020055,2]
[400343222,1767399038701,-517.07410449,0.000201,2]
[400343230,1767399040092,-151.08,0.0001992,2]
[400343231,1767399040103,-487.59914084,0.000201,2]
[400343232,1767399040114,-2080.64,0.00020155,2]
[400343233,1767399040125,-212.27,0.00020187,2]
[400343234,1767399040135,-16848.03092176,0.00020222,2]
[400343235,1767399040159,-3240.0,0.00020226,2]
[400343236,1767399040172,-11002.33563896,0.0002028,2]
[400343237,1767399040196,-8786.66397684,0.0002028,2]
[400343238,1767399040207,-578.57,0.00020514,2]
[400343239,1767399040218,-256.05,0.00020522,2]
[400343240,1767399040230,-1519.08,0.00020624,2]
[400343241,1767399040241,-166.18,0.00020708,2]
[400343242,1767399040253,-904.72,0.00020812,3]
[400343243,1767399040264,-500.0,0.00020822,2]
[400343244,1767399040274,-4890.48075116,0.000209,30]
[400343245,1767399040285,-74880.5936945,0.00020969,2]
[400343246,1767399040297,-524.70305901,0.00020969,2]
[400343247,1767399040319,-7727.68190819,0.00020969,2]
[400343248,1767399040330,-273.0,0.00021079,2]
[400343249,1767399040340,-350.0,0.00021253,2]
[400343250,1767399040352,-1000.0,0.00021291,2]
[400343251,1767399040363,-244.03,0.00021307,2]
[400343252,1767399040373,-6822.73,0.0002131,2]
[400343253,1767399040385,-1304.95,0.00021349,2]
[400343254,1767399040396,-150.0,0.00021408,2]
[400343255,1767399040408,-240.77,0.00021495,2]
[400343256,1767399040420,-200.0,0.00021841,2]
[400343257,1767399040431,-5000.0,0.00021918,2]
[400343258,1767399040443,-163.37,0.00022,2]
[400343259,1767399040455,-277.88900213,0.00022075,2]
[400343260,1767399040466,-493.42914003,0.000221,2]
[400343261,1767399040476,-239.76195622,0.0002211,2]
[400343263,1767399040853,-292.16,0.00022209,2]
[400343264,1767399040876,-500.0,0.00022387,2]
[400343265,1767399040891,-244.03,0.00022491,2]
[400343266,1767399040901,-19788.9996158,0.00022561,2]
[400343267,1767399040911,-3000.94510627,0.00022599,2]
[400343268,1767399040921,-200.0,0.0002266,2]
[400343269,1767399040931,-166.66,0.00022818,2]
[400343270,1767399040941,-240.77,0.00022865,2]
[400343271,1767399040951,-1364.62,0.0002288,2]
[400343272,1767399040962,-2580.6324345,0.000231,2]
[400343273,1767399040971,-500.0,0.00023109,2]
[400343274,1767399040982,-7737.57959832,0.00023219,2]
[400343275,1767399040991,-34728.81,0.00023237,2]
[400343276,1767399041001,-292.16,0.0002332,2]
[400343277,1767399041011,-200.0,0.00023479,2]
[400343278,1767399041021,-200.0,0.00023538,2]
[400343279,1767399041030,-244.03,0.00023675,2]
[400343280,1767399041040,-2000.0,0.000238,2]
[400343281,1767399041050,-165.79,0.00023838,2]
[400343282,1767399041061,-83132.9786617,0.00023938,2]
[400343283,1767399041071,-1000.0,0.00023952,2]
[400343284,1767399041081,-1019.08383674,0.00024,2]
[400343285,1767399041091,-3600.0,0.00024,2]
[400343286,1767399041102,-1232.35438479,0.00024,2]
[400343287,1767399041112,-2043.4,0.00024235,2]
[400343288,1767399041121,-200.0,0.00024298,2]
[400343289,1767399041131,-292.16,0.0002443,2]
[400343290,1767399041141,-166.66,0.00024701,2]
[400343291,1767399041151,-20974.434064,0.000248,3]
[400343292,1767399041161,-2467.58047812,0.00024831,3]
[400343293,1767399041171,-19788.9996158,0.00024841,2]
[400343294,1767399041181,-244.03,0.00024858,2]
[400343295,1767399041191,-1109.2215266,0.00025,2]
[400343296,1767399041200,-200.0,0.00025117,2]
[400343297,1767399041210,-1233.79023906,0.00025132,3]
[400343298,1767399041219,-3000.94510627,0.00025143,2]
[400343299,1767399041229,-1233.79023906,0.00025401,3]
[400343300,1767399041239,-7737.57959831,0.00025411,2]
[400343301,1767399041249,-292.16,0.0002554,2]
[400343302,1767399041259,-1233.79023906,0.0002599,3]
[400343303,1767399041268,-7466.33282581,0.00026,10]
[400343304,1767399041278,-165.79,0.00026005,2]
[400343305,1767399041287,-244.03,0.00026042,2]
[400343306,1767399041298,-277.88900213,0.0002625,2]
[400343307,1767399041307,-166.66,0.00026584,2]
[400343308,1767399041317,-1000.0,0.00026614,2]
[400343309,1767399041327,-292.16,0.00026651,2]
[400343310,1767399041337,-212.27,0.00026676,2]
[400343311,1767399041347,-166.26,0.00026853,2]
[400343312,1767399041356,-1233.79023906,0.00026897,3]
[400343313,1767399041366,-65222.88025115,0.00026907,2]
[400343314,1767399041462,-17910.09841055,0.00026907,2]
[400343315,1767399041471,-244.03,0.00027226,2]
[400343316,1767399041481,-964.37,0.00027397,2]
[400343317,1767399041491,-964.37,0.00027397,2]
[400343318,1767399041500,-964.37,0.00027397,2]
[400343319,1767399041510,-964.37,0.00027397,2]
[400343320,1767399041519,-964.37,0.00027397,2]
[400343321,1767399041530,-964.37,0.00027397,2]
[400343322,1767399041540,-964.37,0.00027397,2]
[400343323,1767399041550,-964.37,0.00027397,2]
[400343324,1767399041560,-964.37,0.00027397,2]
[400343325,1767399041569,-964.37,0.00027397,2]
[400343326,1767399041579,-964.37,0.00027397,2]
[400343327,1767399041588,-964.37,0.00027397,2]
[400343328,1767399041598,-964.37,0.00027397,2]
[400343329,1767399041607,-964.37,0.00027397,2]
[400343330,1767399041617,-964.37,0.00027397,2]
[400343331,1767399041627,-964.37,0.00027397,2]
[400343332,1767399041637,-964.37,0.00027397,2]
[400343333,1767399041647,-964.37,0.00027397,2]
[400343334,1767399041658,-964.37,0.00027397,2]
[400343335,1767399041667,-964.37,0.00027397,2]
[400343336,1767399041677,-964.37,0.00027397,2]
[400343337,1767399041687,-964.37,0.00027397,2]
[400343338,1767399041697,-964.37,0.00027397,2]
[400343339,1767399041708,-964.53242012,0.00027397,2]
[400343340,1767399041720,-500.0,0.00027397,20]
[400343341,1767399041730,-184.23,0.00027397,30]
[400343342,1767399041739,-300.0,0.00027397,2]
[400343343,1767399041750,-183.77,0.00027397,10]
[400343344,1767399041759,-2000.0,0.000275,2]
[400343345,1767399041770,-1000.0,0.000275,2]
[400343346,1767399041780,-7737.57959831,0.00027603,2]
[400343347,1767399041790,-200.0,0.00027647,2]
[400343348,1767399041801,-207.4,0.00027647,2]
[400343349,1767399041811,-215.0738,0.00027647,2]
[400343350,1767399041820,-223.0315306,0.00027647,2]
[400343351,1767399041829,-231.28369723,0.00027647,2]
[400343352,1767399041839,-239.84119403,0.00027647,2]
[400343353,1767399041848,-248.71531821,0.00027647,2]
[400343354,1767399041858,-257.91778498,0.00027647,2]
[400343355,1767399041867,-267.46074303,0.00027647,2]
[400343356,1767399041876,-277.35679052,0.00027647,2]
[400343357,1767399041886,-3000.94510627,0.00027686,2]
[400343358,1767399041895,-165.79,0.00028172,2]
[400343359,1767399041906,-2080.64,0.00028217,2]
[400343360,1767399041915,-244.03,0.00028409,2]
[400343361,1767399041925,-556.0,0.00028767,7]
[400343362,1767399041934,-287.61899177,0.00029016,2]
[400343363,1767399041944,-1000.0,0.00029275,2]
[400343364,1767399041955,-3336.02310703,0.00029442,2]
[400343365,1767399041966,-200.0,0.00029506,2]
[400343366,1767399041976,-244.03,0.00029593,2]
[400343367,1767399041985,-7737.57959831,0.00029796,2]
[400343368,1767399041995,-9947.59,0.0002993,2]
[400343369,1767399042005,-500.0,0.00030192,2]
[400343370,1767399042015,-3000.94510627,0.0003023,2]
[400343371,1767399042024,-165.79,0.00030339,2]
[400343372,1767399042034,-5485.0,0.00030342,5]
[400343373,1767399042043,-19475.47,0.00030352,37]
[400343374,1767399042053,-298.26089446,0.00030385,2]
[400343375,1767399042063,-277.88900213,0.00030425,2]
[400343376,1767399042073,-999.99,0.0003062,2]
[400343377,1767399042083,-150.99,0.0003062,2]
[400343378,1767399042093,-3171.76,0.0003062,2]
[400343379,1767399042104,-1177.4,0.0003062,2]
[400343380,1767399042114,-1488.67,0.0003062,2]
[400343381,1767399042123,-244.03,0.00030777,2]
[400343382,1767399042133,-2000.0,0.000312,2]
[400343383,1767399042143,-196.54559207,0.000315,2]
[400343384,1767399042153,-184.23,0.00031723,30]
[400343385,1767399042163,-309.29654756,0.00031754,2]
[400343386,1767399042172,-1000.0,0.00031936,2]
[400343387,1767399042182,-244.03,0.00031961,2]
[400343388,1767399042192,-7737.57959831,0.00031988,2]
[400343389,1767399042202,-165.79,0.00032506,2]
[400343390,1767399042212,-3000.94510627,0.00032774,2]
[400343391,1767399042222,-151.85540648,0.00032988,2]
[400343392,1767399042231,-320.74051982,0.00033123,2]
[400343393,1767399042242,-212.27,0.00033165,2]
[400343394,1767399042251,-166.26,0.00033702,2]
[400343395,1767399042261,-226.18,0.00033704,2]
[400343396,1767399042271,-7737.57959831,0.0003418,2]
[400343397,1767399042281,-234.31,0.00034225,14]
[400343398,1767399042290,-767.17,0.00034281,2]
[400343399,1767399042300,-1364.62,0.0003432,120]
[400343400,1767399042309,-1000.0,0.000344,7]
[400343401,1767399042319,-332.60791905,0.00034492,2]
[400343402,1767399042329,-277.88900213,0.00034599,2]
[400343403,1767399042339,-165.79,0.00034673,2]
[400343404,1767399042349,-159.41782192,0.00034749,14]
[400343405,1767399042358,-1855.0,0.000349,2]
[400343406,1767399042368,-166.66,0.00035017,30]
[400343407,1767399042377,-1000.0,0.000352,7]
[400343408,1767399042387,-3000.94510627,0.00035318,2]
[400343409,1767399042397,-166.66,0.00035754,30]
[400343410,1767399042407,-344.91441206,0.00035861,2]
[400343411,1767399042417,-500.0,0.00036,2]
[400343412,1767399042426,-184.23,0.00036049,30]
[400343413,1767399042436,-1000.0,0.00036139,2]
[400343414,1767399042445,-7737.57959831,0.00036372,2]
[400343415,1767399042455,-166.66,0.00036491,30]
[400343416,1767399042464,-1603.40235966,0.000368,2]
[400343417,1767399042474,-1946.13520574,0.000368,2]
[400343418,1767399042483,-164.91727114,0.00037,2]
[400343419,1767399042493,-166.66,0.00037228,30]
[400343420,1767399042503,-357.6762453,0.0003723,2]
[400343421,1767399042512,-4312.46323591,0.0003759,2]
[400343422,1767399042522,-3000.94510627,0.00037861,2]
[400343423,1767399042532,-201.17935308,0.0003788,2]
[400343424,1767399042542,-166.66,0.00037965,30]
[400343425,1767399042552,-613.0,0.00037982,2]
[400343426,1767399042561,-3463.0,0.00037982,2]
[400343427,1767399042571,-1328.0,0.00037982,2]
[400343428,1767399042581,-1403.0,0.00037982,2]
[400343429,1767399042590,-1265.0,0.00037982,2]
[400343430,1767399042600,-433.0,0.00037982,2]
[400343431,1767399042610,-4814.0,0.00037982,2]
[400343432,1767399042620,-2433.0,0.00037982,2]
[400343433,1767399042629,-6544.0,0.00037982,2]
[400343434,1767399042639,-250.0,0.00038,45]
[400343435,1767399042649,-1000.0,0.00038,7]
[400343436,1767399042659,-151.85540648,0.00038486,2]
[400343437,1767399042668,-7737.57959831,0.00038565,2]
[400343438,1767399042677,-168.0,0.00038584,2]
[400343439,1767399042687,-370.91026638,0.00038599,2]
[400343440,1767399042696,-1855.09942246,0.000386,2]
[400343441,1767399042706,-166.66,0.00038702,30]
[400343442,1767399042718,-300.0,0.00038735,2]
[400343443,1767399042728,-300.0,0.00038735,2]
[400343444,1767399042738,-303.85501722,0.00038735,2]
[400343445,1767399042748,-300.0,0.00038735,2]
[400343446,1767399042758,-300.0,0.00038735,2]
[400343447,1767399042767,-595.88867019,0.00038735,2]
[400343448,1767399042777,-364.48459935,0.00038735,2]
[400343449,1767399042788,-300.0,0.00038735,2]
[400343450,1767399042798,-300.0,0.00038735,2]
[400343451,1767399042807,-300.0,0.00038735,2]
[400343452,1767399042817,-300.0,0.00038735,2]
[400343453,1767399042826,-300.0,0.00038735,2]
[400343454,1767399042835,-300.0,0.00038735,2]
[400343455,1767399042845,-303.47175408,0.00038735,2]
[400343456,1767399042855,-300.0,0.00038735,2]
[400343457,1767399042864,-300.0,0.00038735,2]
[400343458,1767399042873,-578.04560059,0.00038735,2]
[400343459,1767399042884,-300.0,0.00038735,2]
[400343460,1767399042894,-300.0,0.00038735,2]
[400343462,1767399042903,-300.0,0.00038735,2]
[400343463,1767399042912,-300.0,0.00038735,2]
[400343464,1767399042922,-300.0,0.00038735,2]
[400343465,1767399042931,-615.94778257,0.00038735,2]
[400343466,1767399042940,-304.64549813,0.00038735,2]
[400343467,1767399042951,-300.0,0.00038735,2]
[400343468,1767399042960,-300.0,0.00038735,2]
[400343469,1767399042969,-300.0,0.00038735,2]
[400343470,1767399042980,-300.0,0.00038735,2]
[400343471,1767399042990,-300.0,0.00038735,2]
[400343472,1767399042999,-303.85501722,0.00038735,2]
[400343473,1767399043009,-300.0,0.00038735,2]
[400343474,1767399043019,-300.0,0.00038735,2]
[400343475,1767399043028,-595.88867019,0.00038735,2]
[400343476,1767399043038,-364.48459935,0.00038735,2]
[400343477,1767399043048,-300.0,0.00038735,2]
[400343478,1767399043058,-300.0,0.00038735,2]
[400343479,1767399043068,-300.0,0.00038735,2]
[400343480,1767399043077,-300.0,0.00038735,2]
[400343481,1767399043087,-300.0,0.00038735,2]
[400343482,1767399043096,-300.0,0.00038735,2]
[400343483,1767399043106,-303.47175408,0.00038735,2]
[400343484,1767399043116,-300.0,0.00038735,2]
[400343485,1767399043126,-578.04560059,0.00038735,2]
[400343486,1767399043135,-300.0,0.00038735,2]
[400343487,1767399043146,-300.0,0.00038735,2]
[400343488,1767399043155,-300.0,0.00038735,2]
[400343489,1767399043165,-300.0,0.00038735,2]
[400343490,1767399043175,-300.0,0.00038735,2]
[400343491,1767399043184,-300.0,0.00038735,2]
[400343492,1767399043194,-615.94778257,0.00038735,2]
[400343493,1767399043204,-304.64549813,0.00038735,2]
[400343494,1767399043213,-300.0,0.00038735,2]
[400343495,1767399043222,-300.0,0.00038735,2]
[400343496,1767399043232,-300.0,0.00038735,2]
[400343497,1767399043243,-303.85501722,0.00038735,2]
[400343498,1767399043252,-300.0,0.00038735,2]
[400343499,1767399043263,-595.88867019,0.00038735,2]
[400343500,1767399043273,-364.48459935,0.00038735,2]
[400343501,1767399043282,-300.0,0.00038735,2]
[400343502,1767399043292,-300.0,0.00038735,2]
[400343503,1767399043301,-300.0,0.00038735,2]
[400343504,1767399043311,-300.0,0.00038735,2]
[400343505,1767399043320,-300.0,0.00038735,2]
[400343506,1767399043330,-300.0,0.00038735,2]
[400343507,1767399043339,-303.47175408,0.00038735,2]
[400343508,1767399043349,-578.04560059,0.00038735,2]
[400343509,1767399043364,-362.10901698,0.00038735,2]
[400343510,1767399043374,-300.0,0.00038735,2]
[400343511,1767399043384,-300.0,0.00038735,2]
[400343512,1767399043394,-300.0,0.00038735,2]
[400343513,1767399043404,-300.0,0.00038735,2]
[400343514,1767399043415,-300.0,0.00038735,2]
[400343515,1767399043424,-615.94778257,0.00038735,2]
[400343516,1767399043434,-304.64549813,0.00038735,2]
[400343517,1767399043444,-300.0,0.00038735,2]
[400343518,1767399043454,-300.0,0.00038735,2]
[400343519,1767399043463,-300.0,0.00038735,2]
[400343520,1767399043473,-300.0,0.00038735,2]
[400343521,1767399043483,-303.85501722,0.00038735,2]
[400343522,1767399043492,-360.53749023,0.00038735,2]
[400343523,1767399043502,-595.88867019,0.00038735,2]
[400343524,1767399043512,-364.48459935,0.00038735,2]
[400343525,1767399043521,-300.0,0.00038735,2]
[400343526,1767399043531,-300.0,0.00038735,2]
[400343527,1767399043540,-335.447778,0.00038735,2]
[400343528,1767399043551,-505.30483469,0.00038735,2]
[400343529,1767399043560,-305.9028837,0.00038735,2]
[400343530,1767399043570,-300.0,0.00038735,2]
[400343531,1767399043580,-303.47175408,0.00038735,2]
[400343532,1767399043591,-578.04560059,0.00038735,2]
[400343533,1767399043608,-330.06549305,0.00038735,2]
[400343534,1767399043625,-406.71032993,0.00038735,2]
[400343535,1767399043639,-300.4324882,0.00038735,2]
[400343536,1767399043653,-300.0,0.00038735,2]
[400343537,1767399043663,-300.722883,0.00038735,2]
[400343538,1767399043672,-615.94778257,0.00038735,2]
[400343539,1767399043682,-304.64549813,0.00038735,2]
[400343540,1767399043692,-300.0,0.00038735,2]
[400343541,1767399043702,-300.0,0.00038735,2]
[400343542,1767399043713,-544.70510345,0.00038735,2]
[400343543,1767399043727,-303.85501722,0.00038735,2]
[400343544,1767399043737,-595.88867019,0.00038735,2]
[400343545,1767399043746,-364.48459935,0.00038735,2]
[400343546,1767399043762,-300.0,0.00038735,2]
[400343547,1767399043772,-306.52741052,0.00038735,2]
[400343548,1767399043782,-300.0,0.00038735,2]
[400343549,1767399043792,-303.47175408,0.00038735,2]
[400343550,1767399043803,-578.04560059,0.00038735,2]
[400343551,1767399043813,-532.194673,0.00038735,2]
[400343552,1767399043823,-304.64549813,0.00038735,2]
[400343553,1767399043832,-615.94778257,0.00038735,2]
[400343554,1767399043842,-300.0,0.00038735,2]
[400343555,1767399043851,-300.0,0.00038735,2]
[400343556,1767399043862,-300.0,0.00038735,2]
[400343557,1767399043871,-303.85501722,0.00038735,2]
[400343558,1767399043881,-595.88867019,0.00038735,2]
[400343559,1767399043891,-364.48459935,0.00038735,2]
[400343560,1767399043901,-300.0,0.00038735,2]
[400343561,1767399043912,-300.0,0.00038735,2]
[400343562,1767399043922,-303.47175408,0.00038735,2]
[400343563,1767399043932,-578.04560059,0.00038735,2]
[400343564,1767399043943,-615.94778257,0.00038735,2]
[400343565,1767399043953,-304.64549813,0.00038735,2]
[400343566,1767399043963,-300.0,0.00038735,2]
[400343567,1767399043973,-385.00230328,0.00038735,2]
[400343568,1767399043983,-151.0,0.00038738,14]
[400343569,1767399043993,-277.88900213,0.00038774,2]
[400343570,1767399044003,-27657.16119217,0.00039,10]
[400343571,1767399044014,-515.76565625,0.00039,28]
[400343572,1767399044205,-1000.0,0.00039,7]
[400343573,1767399044215,-168.0,0.00039405,2]
[400343574,1767399044226,-614.14098534,0.000395,2]
[400343575,1767399044236,-168.0,0.0003957,2]
[400343577,1767399044246,-212.27,0.00039654,2]
[400343578,1767399044255,-714.52147029,0.000399,2]
[400343579,1767399044265,-384.63394623,0.00039968,2]
[400343580,1767399044276,-151.4,0.0003999,2]
[400343581,1767399044285,-151.0,0.00039997,14]
[400343582,1767399044295,-1670.05378585,0.0004,30]
[400343583,1767399044305,-310609.96261873,0.0004,30]
[400343584,1767399044351,-450.095,0.0004,30]
[400343585,1767399044364,-3695.32561556,0.0004,30]
[400343586,1767399044376,-2093.22915044,0.0004,30]
[400343587,1767399044388,-1726.20261433,0.0004,30]
[400343588,1767399044399,-632.12874861,0.0004,30]
[400343589,1767399044523,-1119.65292951,0.0004,30]
[400343590,1767399044536,-14712.90866306,0.0004,30]
[400343591,1767399044829,-148097.75283802,0.0004,30]
[400343592,1767399044839,-5000.0,0.0004,3]
[400343593,1767399044849,-387.94260457,0.0004,2]
[400343594,1767399044859,-1550.3594274,0.0004,2]
[400343595,1767399044870,-217.42374776,0.0004,2]
[400343596,1767399044880,-526.0,0.0004,2]
[400343597,1767399044894,-29256.12493401,0.0004,10]
[400343598,1767399044904,-312.85411138,0.0004,2]
[400343599,1767399044914,-15451.52177338,0.0004,30]
[400343600,1767399044924,-208.42,0.0004,2]
[400343601,1767399044934,-200.0,0.0004,5]
[400343602,1767399044944,-156.61,0.0004,14]
[400343603,1767399044953,-186.82,0.0004,14]
[400343604,1767399044963,-508.0,0.00040042,10]
[400343605,1767399044973,-184.23,0.00040375,120]
[400343606,1767399044983,-3000.94510627,0.00040405,15]
[400343607,1767399044993,-250.0,0.00040476,2]
[400343608,1767399045002,-150.0,0.00040476,2]
[400343609,1767399045013,-150.0,0.00040476,2]